[Event "7th Porticcio Open 2022"]
[Site "Porticcio"]
[Date "2022.07.03"]
[Round "3.1"]
[White "Piscopo, Pierluigi"]
[Black "Maurizzi, Marc Andria"]
[Result "0-1"]
[ECO "B33"]
[WhiteElo "2343"]
[BlackElo "2506"]
[Annotator "TA"]
[PlyCount "152"]
[EventDate "2022.07.02"]
[EventType "swiss"]
[EventCountry "FRA"]
[SourceTitle "playchess.com"]
[Source "ChessBase"]
[SourceQuality "1"]
[TimeControl "5400+30"]

{[%evp 17,152,51,55,47,49,31,26,21,25,22,21,16,25,15,19,19,20,14,25,0,0,0,0,-18,12,0,10,-11,-3,-3,-3,-3,-3,-3,-3,-3,-3,-3,-3,-3,0,0,0,0,0,0,0,0,0,0,0,0,0,-4,-5,-14,-10,-15,-14,-15,-26,-68,-51,-72,-43,-72,-21,-93,-44,-93,-93,-93,-93,-93,-93,-93,-93,-93,-73,-83,-41,-93,-55,-100,-50,-52,-36,-58,-58,-73,-59,-59,-52,-52,-52,-190,-190,-233,-233,-233,-233,-225,-218,-218,-207,-189,-183,-374,-374,-331,-204,-364,-353,-319,-282,-29978,-2940,-29942,-9555,-29953,-29952,-12705,-11864,-4095,-2986,-6570,-6036,-4081,-2295,-29963,-29966,-29960,-29962,-11847,-5632,-4133,-2293]} 1. e4 {[%emt 0:00:03]} c5 {[%emt 0:00:10]} 2. Nf3 {[%emt 0:00:15][%cal Bg1f3,Bf3d4,Bd4b5,Bb5a3,Ba3c4,Bc4e3][%mdl 32]} e6 {[%emt 0:00:03]} 3. d4 {[%emt 0:00:45]} cxd4 {[%emt 0:00:03]} 4. Nxd4 {[%emt 0:00:04]} Nf6 {[%emt 0:00:04]} 5. Nc3 {[%emt 0:00:09]} Nc6 {[%emt 0:00:02]} 6. Ndb5 {[%emt 0:00:50]} d6 {[%emt 0:01:35]} 7. Bf4 {[%emt 0:00:17]} e5 {[%emt 0:00:01]} 8. Bg5 {[%emt 0:00:26]} a6 {[%emt 0:00:01]} 9. Na3 {[%emt 0:01:13]} Be6 {[%emt 0:00:42]} 10. Nc4 {[%emt 0:12:05] B33: Sicilian: Pelikan and Sveshnikov Variations.} Rb8 $1 {[%emt 0:00:01][%mdl 4] outshines the older 10...Rc8.} 11. a3 {[%emt 0:05:16]} Nd4 {[%emt 0:04:54] [#]} 12. Bd3 $146 {[%emt 0:05:27][%cal Oc3d5] White has an edge.} ({Predecessor:} 12. Bxf6 Qxf6 13. Ne3 Qg6 14. Bd3 Be7 15. O-O O-O 16. Ncd5 Bd8 17. c3 Nc6 18. Nf5 Kh8 19. Bc2 {1-0 (46) Perez Ponsa,F (2566)-Ricardi,P (2493) Buenos Aires 2019}) 12... Be7 {[%emt 0:00:27]} 13. O-O {[%emt 0:01:19]} O-O {[%emt 0:00:13]} 14. Ne3 {[%emt 0:00:10]} Rc8 {[%emt 0:00:38]} 15. Bxf6 {[%emt 0:07:14]} Bxf6 {[%emt 0:00:02]} 16. Ncd5 {[%emt 0:00:07]} Bg5 {[%emt 0:00:11]} 17. c3 {[%emt 0:00:23]} Nc6 {[%emt 0:00:07][%cal Bd4c6,Bc6a5,Ba5c4,Bc4e3][%mdl 32]} 18. Bc2 {[%emt 0:00:54]} Bxe3 {[%emt 0:08:45]} 19. Nxe3 {[%emt 0:00:05]} Qb6 {[%emt 0:00:59] Prevents Bb3.} 20. Qd3 {[%emt 0:06:07]} Na5 {[%emt 0:11:16]} (20... Qxb2 $2 21. Rfb1 Nb4 22. cxb4 $18 (22. Qxd6 Qxc2 23. Nxc2 Nxc2 $16)) 21. b4 {[%emt 0:16:04]} Nc4 {[%emt 0:02:15] White must now prevent ...Nxe3.} 22. Bb3 {[%emt 0:02:51][%cal Rb3c4]} Nxe3 {[%emt 0:08:16]} 23. Bxe6 {[%emt 0:00:47]} fxe6 {[%emt 0:06:02]} 24. fxe3 {[%emt 0:00:19]} Rfd8 {[%emt 0:02:15]} 25. c4 {[%emt 0:02:00]} Qc6 {[%emt 0:02:57]} 26. Rac1 {[%emt 0:01:24]} h6 {[%emt 0:01:26]} 27. h3 {[%emt 0:02:59]} a5 {[%emt 0:01:27]} 28. Rfd1 {[%emt 0:12:48]} axb4 {[%emt 0:03:10]} 29. axb4 {[%emt 0:00:02]} Kh7 {[%emt 0:01:14]} 30. Kh2 {[%emt 0:02:01]} Ra8 {[%emt 0:02:41]} 31. b5 {[%emt 0:03:28]} Qc5 {[%emt 0:01:47]} 32. Ra1 {[%emt 0:00:05]} Rac8 {[%emt 0:01:40][%cal Ba8c8,Bc8c4,Bc4e4,Be4e3,Be3b3][%mdl 32]} 33. Ra4 {[%emt 0:00:16]} Rd7 {[%emt 0:01:25]} 34. Qe2 {[%emt 0:01:15]} Rf7 {[%emt 0:03:04]} 35. Ra2 {[%emt 0:03:27]} Qxc4 {[%emt 0:02:17]} 36. Qxc4 {[%emt 0:00:22]} (36. Rxd6 {is interesting.} Re7 37. Qxc4 Rxc4 38. Kg3) 36... Rxc4 {[%emt 0:00:02]} 37. Rxd6 {[%emt 0:00:10]} Rxe4 {[%emt 0:00:04]} 38. Rxe6 {[%emt 0:12:16]} Rxe3 $11 {[%emt 0:00:16][%mdl 4096] Endgame KRR-KRR} 39. b6 {[%emt 0:00:00]} Rb3 {[%emt 0:04:32]} 40. Rd2 {[%emt 0:02:38]} Rb5 {[%emt 0:02:10]} (40... e4 $5) 41. Kg3 {[%emt 0:00:28]} Rf5 {[%emt 0:05:36]} (41... e4 $17) 42. h4 {[%emt 0:00:06]} (42. Rd7 $11) 42... Rf7 {[%emt 0:01:15]} (42... Rb3+ $17 43. Kh2 Rf4) 43. Kh3 {[%emt 0:01:56]} (43. Rd3 $15) 43... Rb3+ $1 $17 {[%emt 0:03:21]} 44. Kh2 {[%emt 0:00:14]} Rf4 {[%emt 0:02:19]} 45. g3 {[%emt 0:01:17]} Rg4 {[%emt 0:02:12]} 46. Rg2 {[%emt 0:00:11]} Rg6 {[%emt 0:01:21]} 47. Rxe5 {[%emt 0:00:07]} Rbxb6 {[%emt 0:00:23]} 48. h5 {[%emt 0:00:06]} Rge6 {[%emt 0:01:10]} 49. Rd5 {[%emt 0:00:36]} (49. Rxe6 $1 $15 Rxe6 50. Rb2) 49... Red6 {[%emt 0:04:02]} 50. Re5 {[%emt 0:00:35]} Kg8 {[%emt 0:00:34]} ({Black should try} 50... Rb3 $17 51. Rf2 Rd7) 51. Rge2 {[%emt 0:01:18]} Rf6 {[%emt 0:04:22]} 52. Re8+ {[%emt 0:00:10]} Rf8 {[%emt 0:00:05]} 53. R8e7 {[%emt 0:00:03]} Rb5 {[%emt 0:00:40]} 54. Kg2 {[%emt 0:01:07]} Rf7 {[%emt 0:00:48]} 55. Re8+ {[%emt 0:00:13]} Kh7 $1 {[%emt 0:00:02]} 56. g4 {[%emt 0:00:48] White does not recover from this.} (56. R2e5 $15 Rb2+ 57. Kh3) 56... Rb4 $19 {[%emt 0:00:19]} 57. R8e4 {[%emt 0:00:31] [#]} Rxe4 {[%emt 0:00:17]} 58. Rxe4 {[%emt 0:00:01] KR-KR} b5 {[%emt 0:02:20]} 59. Rb4 {[%emt 0:00:05]} Rb7 {[%emt 0:00:01]} 60. Kf3 {[%emt 0:00:05] [#]} Kg8 $1 {[%emt 0:00:28]} 61. Ke4 {[%emt 0:00:20]} Kf7 {[%emt 0:00:02]} 62. Kd5 $2 {[%emt 0:02:15]} (62. Kf5 {was necessary.}) 62... Kf6 {[%emt 0:00:21]} 63. Kc6 {[%emt 0:00:19]} Re7 {[%emt 0:00:06] ...Kg5 is the strong threat.} 64. Rxb5 $2 {[%emt 0:00:16]} (64. Rd4 {was the only defense.}) 64... Re4 {[%emt 0:00:11]} 65. Rf5+ {[%emt 0:00:48]} Ke6 {[%emt 0:00:05]} 66. Kc5 $2 {[%emt 0:00:26]} (66. Rf1 $19 Rc4+ 67. Kb5 Rxg4 68. Rh1) 66... Rxg4 {[%emt 0:00:05]} (66... Re5+ $142 67. Kd4 Rxf5 68. gxf5+ Kxf5 69. Kd3 Kg5 70. Ke3 Kxh5 71. Kf4 g5+ 72. Ke3 g4 73. Kf4 Kh4 74. Ke4 g3 75. Ke3 Kg4 76. Ke2 h5 77. Ke3 h4 78. Ke2 g2 79. Ke3 g1=Q+ 80. Kd3 h3 81. Kd2 h2 82. Kc3 h1=Q 83. Kd3 Qd5+ 84. Kc2 Qgd1+ 85. Kc3 Q5d4#) 67. Rf1 {[%emt 0:00:05]} Rg5+ {[%emt 0:00:04]} 68. Kd4 {[%emt 0:00:04]} Rxh5 {[%emt 0:00:04]} 69. Rg1 {[%emt 0:00:08]} Kf6 {[%emt 0:00:05]} 70. Ke4 {[%emt 0:00:03]} Re5+ {[%emt 0:00:16]} 71. Kf4 {[%emt 0:00:01]} g5+ {[%emt 0:00:05][%cal Bg7g5,Bg5g4][%mdl 32]} 72. Kg4 {[%emt 0:00:22]} Re4+ {[%emt 0:00:33]} 73. Kf3 {[%emt 0:00:04]} Kf5 {[%emt 0:00:12]} 74. Ra1 {[%emt 0:00:09]} g4+ {[%emt 0:00:15]} 75. Kg3 {[%emt 0:00:07]} Re3+ {[%emt 0:00:02]} 76. Kg2 {[%emt 0:00:02]} h5 {[%emt 0:00:12] Weighted Error Value: White=0.18 (very precise) /Black=0.08 (flawless)} 0-1

[Event "7th Porticcio Open 2022"]
[Site "Porticcio"]
[Date "2022.07.03"]
[Round "3.2"]
[White "Villegas, Pierre"]
[Black "Rakotomaharo, Fy Antenaina"]
[Result "1/2-1/2"]
[ECO "D35"]
[WhiteElo "2294"]
[BlackElo "2490"]
[Annotator "TA"]
[PlyCount "104"]
[EventDate "2022.07.02"]
[EventType "swiss"]
[EventCountry "FRA"]
[SourceTitle "playchess.com"]
[Source "ChessBase"]
[SourceQuality "1"]
[TimeControl "5400+30"]

{[%evp 18,104,21,22,23,26,27,26,27,4,6,0,18,0,0,-9,0,0,0,-17,0,0,0,-22,0,0,0,-8,-7,-7,-7,-9,-12,-6,-2,-8,-3,-11,0,-8,0,-6,0,0,0,0,0,0,0,0,0,0,0,0,0,0,7,7,8,7,7,7,7,7,7,7,8,7,7,0,0,0,0,0,0,0,0,0,0,0,0,0,0,-8,-8,-8,-8,-8,0]} 1. d4 {[%emt 0:00:05]} Nf6 {[%emt 0:00:30]} 2. c4 {[%emt 0:00:13]} e6 {[%emt 0:00:05]} 3. Nc3 {[%emt 0:00:10]} d5 {[%emt 0:00:06]} 4. cxd5 {[%emt 0:00:48]} exd5 {[%emt 0:00:08]} 5. Bg5 {[%emt 0:00:05]} c6 {[%emt 0:00:15]} 6. e3 {[%emt 0:00:29]} h6 {[%emt 0:00:14]} 7. Bh4 {[%emt 0:00:19]} Be7 {[%emt 0:00:07]} 8. Qc2 {[%emt 0:00:51]} O-O {[%emt 0:00:08]} 9. Bd3 {[%emt 0:00:18]} Re8 {[%emt 0:00:10]} 10. Nge2 {[%emt 0:00:22]} a5 {[%emt 0:00:21] D36: Queen's Gambit Declined: Exchange Variation: Main line (5 Bg5 c6 6 Qc2).} 11. O-O {[%emt 0:01:22]} Na6 {[%emt 0:00:08]} 12. a3 {[%emt 0:01:54] Prevents Nb4.} Nc7 {[%emt 0:00:07] White has an edge.} 13. f3 {[%emt 0:04:47]} c5 {[%emt 0:00:25] The position is equal.} 14. b3 {[%emt 0:16:14] [#] Inhibits c4.} b6 $146 {[%emt 0:21:38]} ({Predecessor:} 14... Bd7 15. a4 Rc8 16. Kh1 Ne6 17. dxc5 Rxc5 18. Rad1 Qc7 19. Qd2 Rc8 20. Bb5 g5 21. Bxd7 Qxd7 {½-½ (63) Lazarev,V (2513)-Vujic,B (2357) Germany 2005}) 15. a4 {[%emt 0:04:53]} Ba6 {[%emt 0:04:16]} 16. Bxa6 {[%emt 0:02:05]} Nxa6 {[%emt 0:00:13]} 17. Nb5 {[%emt 0:02:29]} Nb4 {[%emt 0:04:43]} 18. Qd2 {[%emt 0:11:32]} cxd4 {[%emt 0:15:20]} 19. exd4 {[%emt 0:02:00]} Rc8 {[%emt 0:00:23] ...Rc2 is the strong threat.} 20. Nec3 {[%emt 0:03:48]} Nh5 {[%emt 0:03:39]} (20... Qd7 $5 {[%cal Rf6e4]}) 21. Bxe7 {[%emt 0:01:26]} Qxe7 {[%emt 0:00:04]} 22. Rfe1 {[%emt 0:07:28]} Qf6 {[%emt 0:02:14]} 23. Rxe8+ {[%emt 0:05:17]} Rxe8 {[%emt 0:00:05]} 24. Re1 {[%emt 0:00:14]} Rxe1+ {[%emt 0:00:59]} 25. Qxe1 {[%emt 0:00:05]} Nf4 {[%emt 0:00:21]} 26. Qe5 {[%emt 0:21:36]} Qxe5 {[%emt 0:08:24]} 27. dxe5 $11 {[%emt 0:00:13][%mdl 4096] Endgame KNN-KNN} g5 {[%emt 0:00:03]} 28. Nd4 {[%emt 0:03:25]} Kf8 {[%emt 0:00:34]} 29. g3 {[%emt 0:04:02]} Nfd3 {[%emt 0:00:10]} 30. e6 {[%emt 0:00:53]} fxe6 {[%emt 0:00:10]} 31. Nxe6+ {[%emt 0:00:05]} Ke7 {[%emt 0:00:05]} 32. Nd4 {[%emt 0:00:21]} Kd6 {[%emt 0:09:18]} 33. Ncb5+ {[%emt 0:00:09]} Ke5 {[%emt 0:00:18]} 34. Kf1 {[%emt 0:00:45] Prevents Ne1.} h5 {[%emt 0:10:01]} 35. Ke2 {[%emt 0:00:25]} g4 {[%emt 0:00:06]} 36. Ke3 {[%emt 0:01:42]} gxf3 {[%emt 0:00:16]} 37. Nxf3+ {[%emt 0:00:17]} Kf5 {[%emt 0:00:07]} 38. h3 {[%emt 0:00:32][%cal Bh2h3,Bh3g4,Bg4g5][%mdl 32]} Nc5 {[%emt 0:01:01]} 39. Nbd4+ {[%emt 0:01:10]} Kf6 {[%emt 0:00:08]} 40. g4 {[%emt 0:00:25]} hxg4 {[%emt 0:00:06]} 41. hxg4 {[%emt 0:00:02]} Nbd3 {[%emt 0:00:10]} 42. g5+ {[%emt 0:01:47]} Kg6 {[%emt 0:01:09] [#]} 43. Ne6 $1 {[%emt 0:00:36]} Nxe6 {[%emt 0:04:35]} 44. Kxd3 {[%emt 0:00:05] KN-KN} Nc5+ {[%emt 0:00:03]} (44... Nxg5 $2 45. Nxg5 Kg7 46. Kd4 $18) 45. Kd4 {[%emt 0:02:11] Black must now prevent Nd2.} Nxb3+ {[%emt 0:00:05]} 46. Kxd5 {[%emt 0:00:02]} Nc5 {[%emt 0:00:06]} 47. Kc6 {[%emt 0:00:20]} Nxa4 {[%emt 0:00:06]} 48. Ne5+ {[%emt 0:00:43]} Kxg5 {[%emt 0:00:08]} 49. Nc4 {[%emt 0:01:09]} Kf4 {[%emt 0:00:26]} 50. Nxa5 {[%emt 0:00:13]} bxa5 {[%emt 0:00:05]} 51. Kb5 {[%emt 0:00:04][%csl LRa4,LRa5] [#]} Nb6 $1 {[%emt 0:00:08][%cal Oa5a4] ( -> ...a4!)} 52. Kxa5 {[%emt 0:00:06]} Ke5 {An interesting draw.  Weighted Error Value: White=0.03 (flawless) /Black=0.03 (flawless)} 1/2-1/2

[Event "7th Porticcio Open 2022"]
[Site "Porticcio"]
[Date "2022.07.03"]
[Round "3.3"]
[White "Barrish, Daniel"]
[Black "Karttunen, Mika"]
[Result "0-1"]
[ECO "D35"]
[WhiteElo "2283"]
[BlackElo "2484"]
[Annotator "TA"]
[PlyCount "120"]
[EventDate "2022.07.02"]
[EventType "swiss"]
[EventCountry "FRA"]
[SourceTitle "playchess.com"]
[Source "ChessBase"]
[SourceQuality "1"]
[TimeControl "5400+30"]

{[%evp 12,120,26,27,27,26,27,35,33,33,15,23,33,34,23,0,2,0,17,24,50,0,33,-48,-41,-35,0,0,0,0,0,0,0,-29,-45,-21,-29,-14,0,0,0,-3,0,-54,0,0,0,0,0,0,-7,-13,-13,-72,-69,-76,-84,-89,-90,-359,-362,-428,-403,-424,-399,-402,-399,-372,-278,-219,-25,-136,-134,-29984,98,-581,-647,-637,-632,-639,-593,-592,-550,-503,-469,-436,-408,-29978,-29979,-29979,-29979,-29969,-672,-507,-481,-333,0,-2510,-2106,-29986,-29987,-29995,-29996,-29996,-29997,-29997,-29997,-29997,-29998,-29998,-29999]} 1. d4 {[%emt 0:00:37]} Nf6 {[%emt 0:00:10]} 2. c4 {[%emt 0:00:07]} e6 {[%emt 0:00:07]} 3. Nc3 {[%emt 0:00:08]} d5 {[%emt 0:00:08]} 4. cxd5 {[%emt 0:00:12]} exd5 {[%emt 0:00:05]} 5. Bg5 {[%emt 0:00:06]} Bb4 {[%emt 0:00:09]} 6. e3 {[%emt 0:00:36]} h6 {[%emt 0:00:11]} 7. Bh4 {[%emt 0:00:13]} g5 {[%emt 0:00:17] D35: Queen's Gambit Declined: Exchange Variation.} 8. Bg3 {[%emt 0:00:21]} Ne4 {[%emt 0:00:07]} 9. Nge2 {[%emt 0:01:31]} h5 {[%emt 0:00:28] White is slightly better.} 10. h4 {[%emt 0:01:25]} Nxg3 {[%emt 0:00:27]} 11. Nxg3 {[%emt 0:00:10]} gxh4 {[%emt 0:00:18]} 12. Nxh5 {[%emt 0:00:21]} c6 {[%emt 0:00:12]} 13. Nf4 {[%emt 0:02:26] [#]} Bd6 $146 {[%emt 0:07:52]} ({Predecessor:} 13... Nd7 14. Bd3 Qg5 15. Qc2 Nb6 16. O-O-O Bg4 17. f3 Bd7 18. g4 O-O-O 19. Qf2 Bxc3 20. bxc3 {0-1 (59) Bok,B (2624)-Abdusattorov,N (2661) Chess.com INT 2022}) 14. Bd3 {[%emt 0:05:18]} Bxf4 {[%emt 0:06:43]} 15. exf4 {[%emt 0:00:17]} Qf6 {[%emt 0:00:09][%csl LRd4,LRf4]} 16. Ne2 {[%emt 0:02:04]} (16. Qf3 $1 $14) 16... h3 {[%emt 0:19:35]} 17. g3 {[%emt 0:01:13]} ({White should play} 17. gxh3 $14 Bg4 18. Qd2) 17... Bg4 $1 $15 {[%emt 0:01:55]} 18. Qd2 {[%emt 0:04:38]} Nd7 {[%emt 0:05:53]} 19. Qe3+ $1 {[%emt 0:02:58]} Kf8 $1 {[%emt 0:00:14] Threatens to win with ...Re8.} 20. f3 {[%emt 0:00:33]} Re8 {[%emt 0:00:41]} 21. Qf2 {[%emt 0:00:09]} Bf5 {[%emt 0:01:10]} 22. Rd1 {[%emt 0:08:37]} Bxd3 {[%emt 0:08:58]} 23. Rxd3 {[%emt 0:00:33]} Qg6 {[%emt 0:00:20]} 24. Kd2 {[%emt 0:01:05]} Nb6 {[%emt 0:00:24]} 25. b3 {[%emt 0:01:15] Against Nc4+} Qd6 {[%emt 0:03:45] White must now prevent ...Qa3. Really sharp!} 26. Kc2 {[%emt 0:04:55]} Qa3 {[%emt 0:08:58]} 27. Kb1 {[%emt 0:02:54]} (27. Nc3 $11) 27... Qe7 {[%emt 0:01:42]} ({Black should try} 27... Nc4 $15 28. Nc3 Qb4) 28. Nc1 $11 {[%emt 0:00:43]} a5 {[%emt 0:04:26]} 29. Qf1 {[%emt 0:06:26]} Qe6 {[%emt 0:00:50]} 30. g4 {[%emt 0:03:05]} Qh6 $36 {[%emt 0:00:25][%mdl 2048] Black is pushing.} 31. f5 {[%emt 0:03:17]} Nc8 {[%emt 0:06:58][%cal Oa5a4]} 32. Ne2 {[%emt 0:05:45]} (32. a4 $11) 32... Nd6 $17 {[%emt 0:00:49][%cal Oa5a4]} 33. Rh2 {[%emt 0:04:47]} Qh4 {[%emt 0:01:33][%cal Oa5a4]} 34. Kc2 {[%emt 0:11:01]} a4 $1 {[%emt 0:00:31]} 35. Ng1 $2 {[%emt 0:05:00][%mdl 8192]} (35. Qg1 $17 {was necessary.}) 35... Qg3 $19 {[%emt 0:01:35]} ({But not} 35... axb3+ $2 36. axb3 Qg3 37. Rh1 $19 (37. Rxh3 $2 Rxh3 38. Nxh3 Nb5 $19)) 36. Rxh3 {[%emt 0:01:12]} Rxh3 {[%emt 0:00:05]} 37. Nxh3 {[%emt 0:00:07]} axb3+ {[%emt 0:00:12]} 38. axb3 {[%emt 0:00:35]} Nb5 {[%emt 0:00:17][%cal Oc6c5]} 39. Nf2 {[%emt 0:06:42]} Ra8 {[%emt 0:06:09] Hoping for ...Ra2+.} 40. Kb1 {[%emt 0:02:56] Against Ra2} Qh2 $2 {[%emt 0:08:06]} (40... c5 $1 $19 {[%cal Rc5d4]} 41. Qh3 (41. f4 $2 Qxf4 42. Qe2 cxd4 $19) 41... Qg1+ 42. Nd1 Nc3+ $1 {[%mdl 512]} 43. Kc2 Ra2+ 44. Kc1 Rh2 45. Qxh2 Qxh2 46. Rxc3 Qf4+ 47. Kc2 Qxd4) 41. Qe1 {[%emt 0:03:51]} (41. Qe2 $1 $11 {keeps the balance.}) 41... c5 $1 $17 {[%emt 0:01:25] Black is more active.} 42. dxc5 {[%emt 0:05:44][%mdl 8192]} (42. f6 $17) 42... d4 $2 {[%emt 0:00:07]} (42... Qh8 {mates} 43. Qc1 Na3+ 44. Ka2 Nc4+ 45. Kb1 Qa1+ 46. Kc2 Ra2+ 47. Kd1 Nb2+ 48. Kc2 Nxd3+ 49. Kxd3 Qxc1 50. Ne4 dxe4+ 51. Kxe4 Re2+ 52. Kd4 Qf4+ 53. Kc3 Rd2 54. b4 Qe3+ 55. Kc4 Qd3#) 43. Qh1 $2 {[%emt 0:03:43][%mdl 8192]} Qxf2 $19 {[%emt 0:04:35]} (43... Na3+ 44. Kc1 Qxf2 45. Qh8+ Ke7 46. Qe5+ Kf8 47. Qh8+ Ke7 48. Qe5+ Kf8 49. Qh8+ $11) 44. Qh8+ {[%emt 0:00:06]} Ke7 {[%emt 0:00:03]} 45. Qxa8 {[%emt 0:00:24][%mdl 4096] Endgame KQR-KQN} Qf1+ {[%emt 0:00:05]} 46. Kc2 {[%emt 0:00:32]} Qe2+ {[%emt 0:00:10][%mdl 64] Deflection} 47. Kc1 {[%emt 0:00:38]} Qxd3 {[%emt 0:00:20]} 48. Qxb7+ {[%emt 0:00:07] [#]} Kf6 $1 {[%emt 0:00:52]} 49. Qd5 {[%emt 0:01:51]} (49. Qe4 $19 Qc3+ 50. Kd1 Qxc5 51. Qd3) 49... Qe3+ {[%emt 0:01:31]} 50. Kc2 {[%emt 0:00:26]} Qe2+ {[%emt 0:00:55]} ({Inferior is} 50... d3+ 51. Qxd3 Qxc5+ 52. Kd2 $17) 51. Kc1 {[%emt 0:00:09]} Qe1+ {[%emt 0:00:19]} (51... d3 $142 52. Qd8+ Ke5 53. Qe7+ Kf4 54. Qe4+ Kg3 55. Qxe2 dxe2 56. Kd2 Kxf3 57. c6 Kf2 58. Kd3 e1=Q 59. Kc4 Qe5 60. c7 Nxc7 61. Kd3 Qd5+ 62. Kc2 Nb5 63. f6 Ke3 64. Kb2 Qd2+ 65. Kb1 Nc3+ 66. Ka1 Qc1#) 52. Kc2 {[%emt 0:00:14]} Qc3+ {[%emt 0:01:14]} 53. Kd1 {[%emt 0:01:07]} Qd3+ $2 {[%emt 0:01:09]} (53... Qa1+ 54. Kc2 Qc3+ 55. Kd1 Qd3+ 56. Ke1 Qe3+ 57. Kf1 Nc3 58. Qd6+ Kg7) 54. Kc1 $1 {[%emt 0:00:30] [#]} Kg5 $1 {[%emt 0:00:36] ( -> ...Qe3+)} 55. Qxf7 {[%emt 0:01:28]} Qe3+ {[%emt 0:00:11] Black mates.} 56. Kc2 {[%emt 0:00:45]} d3+ {[%emt 0:00:16][%mdl 64] Discovered Attack} 57. Kb1 {[%emt 0:00:18]} Qe1+ {[%emt 0:00:12]} 58. Kb2 {[%emt 0:00:21]} Qc3+ {[%emt 0:00:12]} 59. Kb1 {[%emt 0:00:07]} Qc2+ {[%emt 0:00:10]} 60. Ka1 {[%emt 0:00:06]} Qc1+ {[%emt 0:00:06] Weighted Error Value: White=0.54/Black=0.33} 0-1

[Event "7th Porticcio Open 2022"]
[Site "Porticcio"]
[Date "2022.07.03"]
[Round "3.4"]
[White "Venkatesh, M.R."]
[Black "Humeau, Cyril"]
[Result "1-0"]
[ECO "A06"]
[WhiteElo "2479"]
[BlackElo "2270"]
[Annotator "TA"]
[PlyCount "81"]
[EventDate "2022.07.02"]
[EventType "swiss"]
[EventCountry "FRA"]
[SourceTitle "playchess.com"]
[Source "ChessBase"]
[SourceQuality "1"]
[TimeControl "5400+30"]

{[%evp 9,81,40,43,36,28,30,81,71,120,70,70,75,85,64,68,61,77,70,87,64,92,91,92,91,104,106,170,182,176,81,94,75,84,91,128,123,114,125,127,110,108,98,104,82,91,77,85,77,84,86,88,39,61,62,63,92,88,0,0,0,299,299,5110,247,29986,29987,29987,29988,29988,29989,29990,29991,29991,29992]} 1. Nf3 {[%emt 0:04:25]} d5 {[%emt 0:00:17]} 2. g3 {[%emt 0:00:18]} Nf6 {[%emt 0:00:36]} 3. Bg2 {[%emt 0:00:08]} Nbd7 {[%emt 0:02:17]} 4. c4 {[%emt 0:03:38]} dxc4 {[%emt 0:02:51]} 5. Na3 {[%emt 0:02:22]} Nb6 {[%emt 0:01:38][%cal Oe7e5] [#]} 6. Nxc4 $1 {[%emt 0:01:09][%mdl 64] Decoy. A07: Réti Opening: New York and Capablanca Systems.} Nxc4 {[%emt 0:00:05]} 7. Qa4+ {[%emt 0:00:04]} Bd7 {[%emt 0:00:04]} (7... c6 $11 {keeps the balance.} 8. Qxc4 Be6) 8. Qxc4 $16 {[%emt 0:00:06] White is better.} Bc6 {[%emt 0:00:04] [#]} (8... c6 $142) 9. d3 $146 {[%emt 0:03:28]} (9. Ne5 $1 $16 {[%csl Ge5][%cal Rc4f7]} Bd5 10. Qa4+ c6 11. e4) ({Predecessor:} 9. Ne5 Bd5 10. Qa4+ c6 11. e4 Be6 12. d4 Nd7 13. Nf3 g6 14. O-O Bg7 15. Be3 {1-0 (47) Sviridov,V (2562)-Barbero Sendic,A (2322) Chess.com INT 2020}) 9... Bxf3 $14 {[%emt 0:07:37]} 10. Bxf3 {[%emt 0:00:13]} c6 {[%emt 0:00:05]} 11. b4 {[%emt 0:06:16]} a6 {[%emt 0:05:23] Prevents b5.} 12. O-O {[%emt 0:01:01]} e6 {[%emt 0:00:22]} 13. a4 {[%emt 0:02:33][%cal Ba2a4,Ba4b5][%mdl 32]} Be7 {[%emt 0:00:16]} 14. Bd2 {[%emt 0:03:29]} O-O {[%emt 0:00:31]} 15. b5 {[%emt 0:02:42]} axb5 {[%emt 0:03:12]} 16. axb5 {[%emt 0:00:57]} Nd5 {[%emt 0:00:40]} 17. bxc6 {[%emt 0:27:12]} Rc8 {[%emt 0:00:33]} (17... bxc6 $16 18. Qxc6 Rc8) 18. Ba5 $18 {[%emt 0:00:35]} Qd6 {[%emt 0:00:07] [#]} 19. Rab1 {[%emt 0:07:36]} (19. e4 $1 $18 {[%cal Re4d5] has better winning chances.} Rxc6 20. Qb3) 19... bxc6 {[%emt 0:04:27]} 20. Rb7 {[%emt 0:01:23]} Rfe8 {[%emt 0:03:01]} 21. e4 {[%emt 0:04:25]} Nf6 {[%emt 0:04:16]} 22. d4 {[%emt 0:00:38] Hoping for e5.} Qa3 {[%emt 0:06:56][%csl LRa5,LRf3]} 23. Bc3 {[%emt 0:00:42] A strong pair of Bishops.} Qa8 {[%emt 0:00:26]} 24. Rfb1 {[%emt 0:03:14]} Bf8 {[%emt 0:01:36]} 25. R7b6 {[%emt 0:02:54] White is much more active.} Rb8 {[%emt 0:03:13]} 26. Rxb8 {[%emt 0:03:53]} (26. Kg2 {looks sharper.} Rxb6 27. Rxb6 Rc8 28. Bd2) 26... Rxb8 {[%emt 0:00:57]} 27. Rxb8 {[%emt 0:00:39]} Qxb8 {[%emt 0:00:04]} 28. Qxc6 {[%emt 0:00:16] Black must now prevent e5.} Qb1+ {[%emt 0:00:31]} 29. Kg2 {[%emt 0:00:06] Threatens to win with e5.} Qc2 {[%emt 0:00:06]} 30. g4 {[%emt 0:02:33]} (30. h3 $16) 30... h6 {[%emt 0:00:45]} 31. h4 {[%emt 0:00:49]} Kh7 {[%emt 0:04:07]} 32. d5 $1 $36 {[%emt 0:03:57][%mdl 2048] White is in control.} Nxe4 {[%emt 0:02:16] [#]} 33. Bd4 {[%emt 0:00:40]} (33. Be1 $1 $16 Nc5 34. dxe6 (34. d6 Qc4 $11) 34... fxe6 35. Bb4) 33... Qd3 $11 {[%emt 0:02:13]} 34. dxe6 {[%emt 0:00:03]} Qxd4 {[%emt 0:02:18][%mdl 8192]} (34... Nd2 $11 {and Black stays safe.} 35. Be3 Qf1+ 36. Kh2 (36. Kg3 Bd6+ 37. Qxd6 Qg1+ 38. Kh3 Nxf3 $11) 36... Bd6+ 37. Qxd6 Nxf3+ 38. Kg3 Ng1) 35. Bxe4+ {[%emt 0:00:12][%mdl 4096] Endgame KQB-KQB} f5 $2 {[%emt 0:01:23]} (35... g6 36. exf7 Qd6 37. Qxd6 Bxd6) 36. Bxf5+ $2 {[%emt 0:01:19]} (36. e7 Bxe7 37. Bxf5+ Kg8 38. Qe8+ Bf8 39. h5 (39. Be6+ Kh7 $18)) 36... g6 {[%emt 0:00:06]} (36... Kg8 $18 37. Qe8 Qf6) 37. e7 {[%emt 0:02:48] White mates.} gxf5 {[%emt 0:00:42]} 38. exf8=Q {[%emt 0:02:16][%csl Gf8][%cal Rc6h6]} Qxg4+ {[%emt 0:00:30]} 39. Kh1 {[%emt 0:00:06][%csl Gf8][%cal Rc6h6]} Qh3+ {[%emt 0:01:02]} 40. Kg1 {[%emt 0:00:11][%csl Gf8][%cal Rc6h6]} Qg4+ {[%emt 0:00:04]} 41. Qg2 {[%emt 0:00:07] Weighted Error Value: White=0.36/Black=0.36} 1-0